bitfinex/quotes_BTCUSD_20241117
["timestamp","ask_amount","ask_price","bid_price","bid_amount"]
[1731846184988,0.39562055,90861.0,90860.0,0.0017144]
[1731846185186,0.18556255,90861.0,90860.0,0.0017144]
[1731846185393,0.29562055,90861.0,90860.0,0.0017144]
[1731846186444,0.10906255,90861.0,90860.0,0.0017144]
[1731846186657,0.10906255,90861.0,90860.0,0.00488449]
[1731846186878,0.10906255,90861.0,90860.0,0.11494349]
[1731846187318,0.0765,90879.0,90874.0,0.110041]
[1731846187559,0.1652137,90875.0,90874.0,0.110042]
[1731846187776,0.0008571,90880.0,90860.0,0.00488449]
[1731846187777,0.0008571,90880.0,90864.0,0.005]
[1731846188021,0.0008571,90880.0,90879.0,0.110036]
[1731846188255,0.158928,90886.0,90877.0,0.220075]
[1731846188462,0.158928,90886.0,90885.0,0.110029]
[1731846188884,0.20771848,90887.0,90886.0,0.110027]
[1731846189099,0.20771848,90887.0,90886.0,0.106737]
[1731846189513,0.20771848,90887.0,90886.0,0.110027]
[1731846189963,0.09865593,90887.0,90886.0,0.110027]
[1731846190819,0.04428958,90917.0,90885.0,0.005]
[1731846191049,0.48468733,90925.0,90905.0,0.110004]
[1731846191050,0.000857,90906.0,90905.0,0.110004]
[1731846191287,0.10991955,90906.0,90905.0,0.110004]
[1731846191748,0.10991955,90906.0,90899.0,0.220023]
[1731846191955,0.10991955,90906.0,90904.0,0.110005]
[1731846192176,0.10991955,90906.0,90891.0,0.09832717]
[1731846192177,0.10906255,90905.0,90891.0,0.09832717]
[1731846192444,0.10906255,90905.0,90876.0,0.09832717]
[1731846192445,0.1652137,90901.0,90876.0,0.09832717]
[1731846192683,0.110047,90870.0,90863.0,0.10332717]
[1731846192917,0.0787,90881.0,90863.0,0.10332717]
[1731846192918,0.330105,90880.0,90879.0,0.1652137]
[1731846193141,0.330105,90880.0,90863.0,0.06]
[1731846193142,0.220075,90878.0,90863.0,0.06]
[1731846193370,0.0787,90881.0,90867.0,0.1652137]
[1731846193371,0.10906255,90877.0,90867.0,0.1652137]
[1731846193592,0.22008,90876.0,90863.0,0.06]
[1731846193847,0.10906255,90877.0,90861.0,0.220115]
[1731846193848,0.10906255,90875.0,90861.0,0.220115]
[1731846194071,0.220084,90874.0,90860.0,0.0067144]
[1731846194299,0.10906255,90873.0,90864.0,0.110054]
[1731846194512,0.110045,90872.0,90861.0,0.220114]
[1731846194740,0.10906255,90871.0,90865.0,0.11391339]
[1731846194960,0.10906255,90871.0,90865.0,0.110053]
[1731846195205,0.110049,90869.0,90866.0,0.00385594]
[1731846195438,0.10906255,90868.0,90866.0,0.00385594]
[1731846195653,0.10906255,90868.0,90867.0,0.00385148]
[1731846195868,0.10906255,90868.0,90863.0,0.110055]
[1731846196096,0.10906255,90868.0,90867.0,0.00385]
[1731846196340,0.220066,90882.0,90867.0,0.00385]
[1731846196564,0.21910555,90873.0,90867.0,0.00385]
[1731846196786,0.21910555,90873.0,90866.0,0.110051]
[1731846197005,0.10906255,90873.0,90868.0,0.00385594]
[1731846197454,0.10906255,90873.0,90869.0,0.00385445]
[1731846197675,0.10906255,90873.0,90866.0,0.110051]
[1731846198087,0.10906255,90873.0,90865.0,0.005]
[1731846198294,0.10906255,90873.0,90867.0,0.11005]
[1731846198504,0.10906255,90873.0,90866.0,0.00385891]
[1731846198706,0.10906255,90873.0,90870.0,0.110046]
[1731846198922,0.10906255,90873.0,90867.0,0.00885742]
[1731846199125,0.10906255,90873.0,90871.0,0.11389648]
[1731846199336,0.10906255,90873.0,90871.0,0.110045]
[1731846199542,0.10906255,90873.0,90872.0,0.00385]
[1731846199987,0.299347,90890.0,90873.0,0.005]
[1731846200203,0.32911355,90888.0,90877.0,0.005]
[1731846200417,0.10906255,90888.0,90877.0,0.005]
[1731846200851,0.110036,90879.0,90878.0,0.00393711]
[1731846201072,0.10906255,90888.0,90878.0,0.00393711]
[1731846201073,0.110035,90880.0,90878.0,0.00393711]
[1731846201307,0.110033,90882.0,90877.0,0.005]
[1731846201614,0.22006,90884.0,90879.0,0.00392375]
[1731846201703,0.22006,90884.0,90877.0,0.005]
[1731846201913,0.10906255,90883.0,90878.0,0.0039282]
[1731846202573,0.110033,90882.0,90878.0,0.0039282]
[1731846202788,0.21909355,90883.0,90878.0,0.0039282]
[1731846203000,0.21909355,90883.0,90877.0,0.005]
[1731846203208,0.21909355,90883.0,90879.0,0.0039282]
[1731846203417,0.21909355,90883.0,90877.0,0.005]
[1731846203418,0.110031,90883.0,90877.0,0.005]
[1731846203657,0.110037,90878.0,90877.0,0.005]
[1731846203902,0.220072,90880.0,90876.0,0.005]
[1731846204141,0.110037,90878.0,90877.0,0.005]
[1731846204348,0.110048,90869.0,90868.0,0.005]
[1731846204779,0.10906255,90877.0,90872.0,0.005]
[1731846204780,0.11004,90876.0,90872.0,0.005]
[1731846205005,0.32913955,90877.0,90872.0,0.005]
[1731846205006,0.110043,90873.0,90872.0,0.005]
[1731846205724,0.110042,90874.0,90873.0,0.005]
[1731846205957,0.21910455,90874.0,90873.0,0.005]
[1731846206177,0.21910455,90874.0,90867.0,0.005]
[1731846206178,0.110049,90868.0,90867.0,0.005]
[1731846206397,0.220092,90871.0,90868.0,0.005]
[1731846206625,0.110046,90871.0,90870.0,0.005]
[1731846206850,0.10906255,90874.0,90869.0,0.005]
[1731846206851,0.110047,90870.0,90869.0,0.005]
[1731846207295,0.10906255,90870.0,90866.0,0.001714]
[1731846207529,0.11005,90867.0,90866.0,0.001714]
[1731846207761,0.21911255,90867.0,90866.0,0.001714]
[1731846209851,0.220109,90864.0,90847.0,0.22015]
[1731846210084,0.0793,90870.0,90842.0,0.09831462]
[1731846210085,0.110077,90845.0,90842.0,0.09831462]
[1731846210321,0.110077,90845.0,90838.0,0.14747194]
[1731846210322,0.110077,90845.0,90839.0,0.09831462]
[1731846210654,0.110077,90845.0,90837.0,0.21011362]
[1731846210874,0.110077,90845.0,90837.0,0.10002662]
[1731846211361,0.110077,90845.0,90837.0,0.001712]
[1731846213162,0.110077,90845.0,90837.0,0.111798]
[1731846213378,0.0759,90852.0,90837.0,0.001712]
[1731846213577,0.10906255,90851.0,90837.0,0.001712]
[1731846213731,0.220143,90850.0,90837.0,0.001712]
[1731846213912,0.110076,90846.0,90838.0,0.110086]
[1731846214108,0.110077,90845.0,90838.0,0.110086]
[1731846214389,0.10991925,90846.0,90837.0,0.001712]
[1731846214716,0.10991925,90846.0,90839.0,0.110084]
[1731846214717,0.21999625,90846.0,90839.0,0.110084]
[1731846214866,0.21999525,90846.0,90839.0,0.110084]
[1731846215068,0.10991925,90846.0,90842.0,0.11008]
[1731846215274,0.10991925,90846.0,90837.0,0.001712]
[1731846215275,0.21999525,90846.0,90839.0,0.110084]
[1731846215476,0.21999525,90846.0,90837.0,0.001712]
[1731846215477,0.10991925,90846.0,90837.0,0.001712]
[1731846215688,0.10991925,90846.0,90837.0,0.111798]
[1731846215895,0.0008567,90846.0,90845.0,0.110077]
[1731846216097,0.0008567,90846.0,90845.0,0.11387289]
[1731846218475,0.1580704,90854.0,90845.0,0.00379589]
[1731846218684,0.1580704,90854.0,90850.0,0.110071]
[1731846219112,0.110063,90857.0,90851.0,0.00379886]
[1731846219343,0.10906255,90856.0,90851.0,0.00379886]
[1731846219761,0.110066,90855.0,90851.0,0.00379886]
[1731846219966,0.110066,90855.0,90851.0,0.110069]
[1731846219967,0.10906255,90855.0,90851.0,0.110069]
[1731846220194,0.10906255,90855.0,90852.0,0.00379886]
[1731846220861,0.10906255,90855.0,90850.0,0.110071]
[1731846221084,0.10906255,90855.0,90853.0,0.00379738]
[1731846221305,0.10906255,90855.0,90851.0,0.11007]
[1731846221519,0.10906255,90855.0,90854.0,0.00379589]
[1731846221728,0.10906255,90855.0,90851.0,0.11007]
[1731846221998,0.10906255,90855.0,90854.0,0.00379589]
[1731846222205,0.10906255,90855.0,90851.0,0.11007]
[1731846222405,0.10906255,90855.0,90854.0,0.00379589]
[1731846222628,0.21912755,90855.0,90854.0,0.00379589]
[1731846222848,0.21912755,90855.0,90849.0,0.110072]
[1731846223066,0.10906255,90855.0,90854.0,0.00379589]
[1731846223278,0.10906255,90855.0,90850.0,0.110071]
[1731846223488,0.10906255,90855.0,90854.0,0.00379589]
[1731846223711,0.10906255,90855.0,90853.0,0.110067]
[1731846223912,0.10906255,90855.0,90854.0,0.00379589]
[1731846225035,0.10906255,90855.0,90852.0,0.110068]
[1731846225186,0.10906255,90855.0,90854.0,0.00379589]
[1731846225576,0.10906255,90855.0,90850.0,0.220141]
[1731846225823,0.10991925,90855.0,90853.0,0.110067]
[1731846226065,0.10991925,90855.0,90851.0,0.00379689]
[1731846226224,0.10991925,90855.0,90854.0,0.110066]
[1731846226432,0.10991925,90855.0,90852.0,0.1138634]
[1731846226578,0.10991925,90855.0,90854.0,0.00379243]
[1731846226801,0.10991925,90855.0,90854.0,0.110066]
[1731846226997,0.10991925,90855.0,90854.0,0.11385843]
[1731846227663,0.0008567,90855.0,90854.0,0.11385843]
[1731846231203,0.0008567,90855.0,90854.0,0.11885843]
[1731846231410,0.0008567,90855.0,90854.0,0.17885843]
[1731846232017,0.0008567,90855.0,90854.0,0.22417641]
[1731846232245,0.0008567,90855.0,90854.0,0.16417641]
[1731846233347,0.1580704,90866.0,90854.0,0.05411041]
[1731846233556,0.1580704,90866.0,90865.0,0.110053]
[1731846233984,0.110046,90871.0,90865.0,0.1138311]
[1731846234207,0.10906255,90871.0,90866.0,0.110051]
[1731846234655,0.10906255,90871.0,90866.0,0.11375922]
[1731846234866,0.10906255,90871.0,90870.0,0.110047]
[1731846235071,0.110039,90877.0,90867.0,0.22380774]
[1731846235274,0.0812,90879.0,90867.0,0.22380774]
[1731846235275,0.10906255,90876.0,90872.0,0.110043]
[1731846235689,0.10906255,90876.0,90873.0,0.00373848]
[1731846236027,0.10906255,90876.0,90871.0,0.110045]
[1731846236229,0.2464137,90879.0,90874.0,0.003737]
[1731846236230,0.0812,90879.0,90874.0,0.003737]
[1731846236460,0.265262,90884.0,90873.0,0.220086]
[1731846236655,0.265262,90884.0,90871.0,0.005]
[1731846236656,0.10906255,90883.0,90875.0,0.00373996]
[1731846236938,0.10906255,90883.0,90871.0,0.005]
[1731846236939,0.110039,90877.0,90871.0,0.005]
[1731846237211,0.220068,90881.0,90871.0,0.005]
[1731846237212,0.110037,90879.0,90873.0,0.110043]
[1731846237343,0.110034,90881.0,90874.0,0.110041]
[1731846237561,0.110036,90880.0,90874.0,0.110041]
[1731846237779,0.110036,90880.0,90875.0,0.00374158]
[1731846238008,0.330097,90882.0,90875.0,0.00374158]
[1731846238216,0.110035,90880.0,90875.0,0.00374158]
[1731846238421,0.110035,90880.0,90875.0,0.11378158]
[1731846238629,0.110035,90880.0,90874.0,0.110041]
[1731846239073,0.110035,90880.0,90876.0,0.00373996]
[1731846239311,0.10906255,90882.0,90875.0,0.00374145]
[1731846239520,0.110034,90881.0,90877.0,0.00373848]
[1731846239773,0.32912755,90882.0,90876.0,0.00374009]
[1731846239983,0.110036,90879.0,90878.0,0.00373712]
[1731846240419,0.110037,90879.0,90873.0,0.110043]
[1731846240832,0.110037,90879.0,90871.0,0.005]
[1731846240833,0.110036,90879.0,90878.0,0.00373551]
[1731846241064,0.110036,90879.0,90873.0,0.110043]
[1731846241496,0.22007,90880.0,90878.0,0.00371633]
[1731846241497,0.110035,90880.0,90878.0,0.00371633]
[1731846241705,0.110035,90880.0,90874.0,0.110041]
[1731846241923,0.110035,90880.0,90879.0,0.00371633]
[1731846242126,0.110036,90879.0,90872.0,0.330133]
[1731846242278,0.110036,90879.0,90873.0,0.110043]
[1731846242482,0.110036,90879.0,90873.0,0.11376676]
[1731846243111,0.220068,90881.0,90873.0,0.00372376]
[1731846243314,0.110039,90877.0,90870.0,0.04446393]
[1731846243567,0.110037,90879.0,90874.0,0.00379278]
[1731846243821,0.110037,90879.0,90873.0,0.110043]
[1731846243957,0.10906255,90882.0,90868.0,0.48544331]
[1731846243958,0.110038,90877.0,90875.0,0.00378968]
[1731846244375,0.22007,90880.0,90872.0,0.110043]
[1731846244692,0.110037,90878.0,90873.0,0.00379414]
[1731846245064,0.110035,90880.0,90874.0,0.110042]
[1731846245274,0.110035,90880.0,90874.0,0.11383168]
[1731846245706,0.10906255,90882.0,90874.0,0.00378968]
[1731846245707,0.110036,90879.0,90874.0,0.00378968]
[1731846245995,0.110036,90879.0,90873.0,0.110043]
[1731846246209,0.110036,90879.0,90875.0,0.00378968]
[1731846246415,0.110034,90881.0,90874.0,0.11383317]
[1731846246624,0.10906255,90882.0,90876.0,0.0037882]
[1731846246837,0.10906255,90882.0,90877.0,0.330115]
[1731846247044,0.10906255,90882.0,90877.0,0.110038]
[1731846247248,0.10906255,90882.0,90877.0,0.11382633]
[1731846247507,0.10906255,90882.0,90878.0,0.110036]
[1731846247709,0.10906255,90882.0,90878.0,0.00378684]
[1731846248354,0.10106255,90882.0,90878.0,0.11382384]
[1731846248558,0.10106255,90882.0,90879.0,0.110035]
[1731846248780,0.10106255,90882.0,90878.0,0.00378684]
[1731846248781,0.10106255,90882.0,90878.0,0.11382284]
[1731846248992,0.10106255,90882.0,90880.0,0.00378388]
[1731846249197,0.10106255,90882.0,90879.0,0.00378536]
[1731846249400,0.10106255,90882.0,90879.0,0.110036]
[1731846249622,0.10106255,90882.0,90880.0,0.00378388]
[1731846250078,0.10106255,90882.0,90878.0,0.110036]
[1731846250303,0.10106255,90882.0,90881.0,0.00378239]
[1731846250535,0.10106255,90882.0,90873.0,0.220087]
[1731846250536,0.10106255,90882.0,90873.0,0.005]
[1731846250747,0.0812,90885.0,90881.0,0.00378239]
[1731846250748,0.110031,90884.0,90881.0,0.00378239]
[1731846250969,0.10906255,90883.0,90875.0,0.220082]
[1731846251209,0.10906255,90883.0,90882.0,0.00378091]
[1731846251435,0.10906255,90883.0,90879.0,0.110035]
[1731846251661,0.10906255,90883.0,90882.0,0.00378091]
[1731846252113,0.10906255,90883.0,90882.0,0.00378523]
[1731846252340,0.10906255,90883.0,90879.0,0.110035]
[1731846252796,0.10906255,90883.0,90880.0,0.0037882]
[1731846254148,0.10906255,90883.0,90878.0,0.110037]
[1731846254376,0.10906255,90883.0,90881.0,0.00378265]
[1731846254602,0.10906255,90883.0,90878.0,0.110037]
[1731846254831,0.10906255,90883.0,90882.0,0.00378117]
[1731846255106,0.10906255,90883.0,90878.0,0.110037]
[1731846255332,0.110031,90883.0,90882.0,0.00378117]
[1731846255561,0.191229,90885.0,90878.0,0.15574307]
[1731846255788,0.30029155,90885.0,90882.0,0.00378117]
[1731846256007,0.30029155,90885.0,90878.0,0.15574307]
[1731846256230,0.30029155,90885.0,90883.0,0.00378265]
[1731846256508,0.30029155,90885.0,90878.0,0.15574307]
[1731846256731,0.30029155,90885.0,90875.0,0.225082]
[1731846256732,0.19026255,90885.0,90884.0,0.00378117]
[1731846256950,0.19026255,90885.0,90875.0,0.005]
[1731846256951,0.110032,90883.0,90876.0,0.110039]
[1731846257188,0.110032,90883.0,90877.0,0.110038]
[1731846257414,0.110032,90883.0,90877.0,0.11382659]
[1731846257646,0.21909155,90885.0,90879.0,0.110036]
[1731846257853,0.110032,90883.0,90877.0,0.11382559]
[1731846258061,0.110032,90883.0,90878.0,0.0037871]
[1731846258270,0.110032,90883.0,90880.0,0.00377446]
[1731846258481,0.10906255,90885.0,90878.0,0.110037]
[1731846258694,0.10906255,90885.0,90879.0,0.00379762]
[1731846258695,0.110031,90884.0,90879.0,0.00379762]
[1731846258922,0.110031,90884.0,90878.0,0.110037]
[1731846259142,0.110031,90883.0,90878.0,0.110037]
[1731846259562,0.110031,90883.0,90879.0,0.00379762]
[1731846259772,0.10906255,90885.0,90879.0,0.00379762]
[1731846259986,0.10906255,90885.0,90881.0,0.220068]
[1731846260216,0.10906255,90885.0,90884.0,0.11003]
[1731846260429,0.000857,90886.0,90882.0,0.00878413]
[1731846260664,0.000857,90886.0,90885.0,0.110029]
[1731846261323,0.000857,90886.0,90885.0,0.11377597]
[1731846263169,0.000857,90886.0,90885.0,0.00374697]
[1731846263405,0.1570707,90891.0,90885.0,0.00374697]
[1731846263615,0.110025,90888.0,90882.0,0.115032]
[1731846263821,0.110025,90888.0,90883.0,0.110031]
[1731846264032,0.110023,90890.0,90883.0,0.11377619]
[1731846264701,0.10906255,90891.0,90883.0,0.11377619]
[1731846264702,0.110024,90889.0,90883.0,0.11377619]
[1731846264882,0.110024,90889.0,90884.0,0.11003]
[1731846265131,0.110024,90889.0,90884.0,0.00374814]
[1731846265354,0.110024,90889.0,90883.0,0.11003]
[1731846265561,0.110024,90889.0,90885.0,0.00374666]
[1731846265786,0.21908455,90891.0,90884.0,0.11377814]
[1731846266003,0.21908455,90891.0,90886.0,0.00374517]
[1731846266229,0.110025,90889.0,90885.0,0.00374962]
[1731846266478,0.110025,90889.0,90882.0,0.115031]
[1731846266479,0.110025,90889.0,90887.0,0.00374666]
[1731846266922,0.110025,90889.0,90888.0,0.0037422]
[1731846267150,0.21908455,90891.0,90884.0,0.11003]
[1731846267360,0.21908455,90891.0,90888.0,0.0037422]
[1731846267361,0.10906255,90891.0,90888.0,0.0037422]
[1731846267585,0.10906255,90891.0,90882.0,0.225065]
[1731846267802,0.10906255,90891.0,90889.0,0.00374369]
[1731846268016,0.110023,90890.0,90884.0,0.110029]
[1731846268239,0.21908455,90891.0,90883.0,0.220063]
[1731846268445,0.21908455,90891.0,90885.0,0.11377614]
[1731846268877,0.110023,90890.0,90885.0,0.110028]
[1731846269113,0.110023,90890.0,90886.0,0.00374194]
[1731846269346,0.110023,90890.0,90884.0,0.11003]
[1731846269561,0.110023,90890.0,90887.0,0.00373897]
[1731846269792,0.110023,90890.0,90884.0,0.11003]
[1731846270000,0.110023,90890.0,90888.0,0.00373749]
[1731846270228,0.21908355,90891.0,90885.0,0.110028]
[1731846270412,0.21908355,90891.0,90889.0,0.00373601]
[1731846270413,0.110023,90890.0,90889.0,0.00373601]
[1731846270897,0.110023,90890.0,90885.0,0.110029]
[1731846271100,0.110023,90890.0,90889.0,0.00373601]
[1731846271304,0.110023,90890.0,90885.0,0.110029]
[1731846271510,0.110023,90890.0,90889.0,0.00373601]
[1731846271733,0.110023,90890.0,90885.0,0.110029]
[1731846271963,0.110023,90890.0,90889.0,0.00373601]
[1731846272200,0.110023,90890.0,90885.0,0.110029]
[1731846272449,0.110023,90890.0,90889.0,0.00373601]
[1731846272655,0.10906255,90891.0,90886.0,0.110027]
[1731846272874,0.10906255,90891.0,90886.0,0.00374046]
[1731846273093,0.10906255,90891.0,90882.0,0.005]
[1731846273094,0.110023,90890.0,90889.0,0.00373601]
[1731846273323,0.110023,90890.0,90885.0,0.110028]
[1731846273536,0.21908455,90891.0,90889.0,0.00373601]
[1731846273759,0.0008564,90890.0,90885.0,0.110028]
[1731846274810,0.0008564,90890.0,90886.0,0.110027]
[1731846275012,0.0008564,90890.0,90885.0,0.110028]
[1731846275244,0.0008564,90890.0,90882.0,0.005]
[1731846275458,0.0008564,90890.0,90887.0,0.110025]
[1731846275732,0.0008564,90890.0,90883.0,0.220063]
[1731846275955,0.0008564,90890.0,90885.0,0.110028]
[1731846276184,0.0008564,90890.0,90886.0,0.110027]
[1731846278140,0.0008564,90890.0,90887.0,0.110026]
[1731846278354,0.0813,90897.0,90887.0,0.110026]
[1731846278598,0.110019,90893.0,90887.0,0.110026]
[1731846278816,0.10906255,90892.0,90887.0,0.110026]
[1731846279480,0.10906255,90892.0,90888.0,0.110024]
[1731846280805,0.10906255,90892.0,90886.0,0.110027]
[1731846281251,0.21908255,90892.0,90886.0,0.110027]
[1731846282128,0.110023,90891.0,90885.0,0.110029]
[1731846282551,0.110023,90891.0,90886.0,0.110027]
[1731846284075,0.10906255,90892.0,90883.0,0.09834952]
[1731846284282,0.110023,90890.0,90884.0,0.110029]
[1731846284703,0.110023,90890.0,90885.0,0.110028]
[1731846284907,0.21908355,90892.0,90885.0,0.11376511]
[1731846285118,0.110022,90891.0,90885.0,0.11376511]
[1731846286033,0.220043,90891.0,90885.0,0.00544971]
[1731846286253,0.110026,90888.0,90885.0,0.00544971]
[1731846286677,0.2208993,90891.0,90885.0,0.00544971]
[1731846286878,0.110027,90887.0,90885.0,0.00544971]
[1731846287570,0.21908955,90886.0,90885.0,0.00544971]
[1731846287795,0.29698955,90886.0,90885.0,0.00544971]
[1731846288265,0.29698955,90886.0,90885.0,0.0017126]
[1731846293507,0.28898955,90886.0,90885.0,0.0017126]
[1731846298692,0.18696255,90886.0,90885.0,0.0017126]
[1731846299129,0.29698955,90886.0,90885.0,0.0017126]
[1731846303509,0.18696255,90886.0,90885.0,0.0017126]
[1731846303716,0.1108783,90891.0,90885.0,0.0017126]
[1731846303954,0.1108783,90891.0,90890.0,0.115023]
[1731846303955,0.0008563,90891.0,90890.0,0.115023]
[1731846304394,0.0008563,90891.0,90890.0,0.11875349]
[1731846304608,0.0008563,90891.0,90890.0,0.21714413]
[1731846305049,0.0008563,90891.0,90890.0,0.27714413]
[1731846305916,0.0008563,90891.0,90890.0,0.17875349]
[1731846306361,0.0008563,90891.0,90890.0,0.32633945]
[1731846306644,0.0008563,90891.0,90890.0,0.32625575]
[1731846306869,0.0008563,90891.0,90890.0,0.17875349]
[1731846307490,0.0008563,90891.0,90890.0,0.32625626]
[1731846307703,0.0008563,90891.0,90890.0,0.17875349]
[1731846307938,0.0008563,90891.0,90890.0,0.32625626]
[1731846308371,0.15807,90900.0,90898.0,0.110013]
[1731846308601,0.15807,90900.0,90897.0,0.110014]
[1731846308837,0.110007,90903.0,90899.0,0.00372206]
[1731846309048,0.0809,90907.0,90899.0,0.005]
[1731846309267,0.0809,90907.0,90902.0,0.110008]
[1731846309470,0.190902,90907.0,90900.0,0.00372503]
[1731846309675,0.110005,90905.0,90900.0,0.11373503]
[1731846309888,0.110005,90905.0,90900.0,0.11001]
[1731846310096,0.190903,90907.0,90901.0,0.003728]
[1731846310577,0.110861,90906.0,90901.0,0.003728]
[1731846311903,0.110861,90906.0,90900.0,0.11001]
[1731846312120,0.000857,90906.0,90902.0,0.11350051]
[1731846312343,0.000857,90906.0,90902.0,0.110007]
[1731846312561,0.000857,90906.0,90903.0,0.00349203]
[1731846313202,0.000857,90906.0,90901.0,0.110009]
[1731846313618,0.000857,90906.0,90898.0,0.220026]
[1731846313619,0.000857,90906.0,90902.0,0.00347696]
[1731846314038,0.000857,90906.0,90898.0,0.220026]
[1731846314375,0.000857,90906.0,90903.0,0.00348006]
[1731846314564,0.000857,90906.0,90891.0,0.09833226]
[1731846314565,0.110019,90893.0,90891.0,0.09833226]
[1731846314803,0.110019,90893.0,90886.0,0.330082]
[1731846314804,0.110015,90896.0,90890.0,0.170022]
[1731846315037,0.110018,90894.0,90890.0,0.06]
[1731846315283,0.0756,90899.0,90890.0,0.06]
[1731846315284,0.110018,90895.0,90890.0,0.06]
[1731846315496,0.0756,90899.0,90890.0,0.06]
[1731846315713,0.110015,90897.0,90890.0,0.170023]
[1731846315934,0.110017,90895.0,90890.0,0.06]
[1731846316155,0.110016,90896.0,90890.0,0.170022]
[1731846316614,0.110017,90895.0,90890.0,0.06]
[1731846317267,0.159721,90891.0,90890.0,0.06]
[1731846317483,0.34378355,90891.0,90890.0,0.06]
[1731846318131,0.110027,90886.0,90885.0,0.0017126]
[1731846322053,0.1108834,90886.0,90885.0,0.0017126]
[1731846322525,0.21994595,90886.0,90885.0,0.0017126]
[1731846322741,0.29814595,90886.0,90885.0,0.0017126]
[1731846323194,0.34454595,90886.0,90885.0,0.0017126]
[1731846323416,0.33654595,90886.0,90885.0,0.0017126]
[1731846325606,0.29014595,90886.0,90885.0,0.0017126]
[1731846326105,0.0008564,90886.0,90885.0,0.0017126]
[1731846326317,0.1108834,90886.0,90885.0,0.0017126]
[1731846331177,0.1108834,90886.0,90885.0,0.00529322]
[1731846331406,0.1108834,90886.0,90885.0,0.0017126]
[1731846331626,0.1108834,90886.0,90885.0,0.00529322]
[1731846331833,0.1108834,90886.0,90885.0,0.0017126]
[1731846332045,0.1108834,90886.0,90885.0,0.00529322]
[1731846332476,0.1108834,90886.0,90885.0,0.0017126]
[1731846332727,0.1108834,90886.0,90885.0,0.00536524]
[1731846332959,0.1108834,90886.0,90885.0,0.0017126]
[1731846338295,0.1028834,90886.0,90885.0,0.0017126]
[1731846339383,0.110027,90886.0,90885.0,0.0017126]
[1731846340054,0.220043,90891.0,90885.0,0.0017126]
[1731846340287,0.10906255,90890.0,90885.0,0.0017126]
[1731846340706,0.110027,90886.0,90885.0,0.0017126]
[1731846345960,0.1108834,90886.0,90885.0,0.0017126]
[1731846353283,0.1028834,90886.0,90885.0,0.0017126]
[1731846355415,0.0008564,90886.0,90885.0,0.0017126]
[1731846355623,0.1108834,90886.0,90885.0,0.00541513]
[1731846355831,0.1108834,90886.0,90885.0,0.0017126]
[1731846356050,0.1108834,90886.0,90885.0,0.00541513]
[1731846356257,0.1108834,90886.0,90885.0,0.0017126]
[1731846356481,0.1108834,90886.0,90885.0,0.00541513]
[1731846356681,0.1108834,90886.0,90885.0,0.0017126]
[1731846358647,0.1108834,90886.0,90885.0,0.00541513]
[1731846360226,0.0008564,90886.0,90885.0,0.00541513]
[1731846360714,0.1108834,90886.0,90885.0,0.00541513]
[1731846362108,0.1108834,90886.0,90885.0,0.0017126]
[1731846365238,0.0008564,90886.0,90885.0,0.00544443]
[1731846365523,0.0008564,90886.0,90885.0,0.0017126]
[1731846365745,0.1108834,90886.0,90885.0,0.00544443]
[1731846365967,0.1108834,90886.0,90885.0,0.0017126]
[1731846366192,0.1108834,90886.0,90885.0,0.00540895]
[1731846366420,0.1108834,90886.0,90885.0,0.0017126]
[1731846366853,0.1108834,90886.0,90885.0,0.00540895]
[1731846367062,0.1108834,90886.0,90885.0,0.0017126]
[1731846367282,0.1108834,90886.0,90885.0,0.00540895]
[1731846367523,0.1108834,90886.0,90885.0,0.0017126]
[1731846368017,0.1108834,90886.0,90885.0,0.00540895]
[1731846368227,0.1028834,90886.0,90885.0,0.0017126]
[1731846368857,0.10374,90886.0,90885.0,0.0017126]
[1731846369705,0.10374,90886.0,90885.0,0.00540895]
[1731846369936,0.10374,90886.0,90885.0,0.0017126]
[1731846370164,0.10374,90886.0,90885.0,0.00540895]
[1731846370412,0.10374,90886.0,90885.0,0.0017126]
[1731846370647,0.10374,90886.0,90885.0,0.00540895]
[1731846378776,0.10374,90886.0,90885.0,0.10374575]
[1731846378998,0.10374,90886.0,90885.0,0.00540895]
[1731846379216,0.0008566,90886.0,90885.0,0.36127997]
[1731846379427,0.0008566,90886.0,90885.0,0.11543795]
[1731846382421,0.0008566,90886.0,90885.0,0.24763828]
[1731846382646,0.0008566,90886.0,90885.0,0.27563828]
[1731846382872,0.0008566,90886.0,90885.0,0.3825005]
[1731846383101,0.0008566,90886.0,90885.0,0.4895005]
[1731846383350,0.1652137,90901.0,90900.0,0.245011]
[1731846383590,0.1652137,90901.0,90900.0,0.39225188]
[1731846383591,0.1572137,90901.0,90900.0,0.39225188]
[1731846383796,0.1572137,90901.0,90900.0,0.24867678]
[1731846384030,0.0008562,90905.0,90904.0,0.110006]
[1731846384255,0.0008562,90905.0,90904.0,0.20815928]
[1731846384491,0.0008562,90905.0,90904.0,0.11364603]
[1731846384938,0.0008562,90905.0,90904.0,0.21179931]
[1731846385150,0.0008562,90905.0,90904.0,0.00364003]
[1731846385385,0.30312275,90905.0,90904.0,0.00364003]
[1731846385604,0.30312275,90905.0,90893.0,0.09815328]
[1731846385605,0.110017,90895.0,90893.0,0.09815328]
[1731846385836,0.110017,90895.0,90891.0,0.14722992]
[1731846385837,0.110015,90897.0,90894.0,0.04556828]
[1731846386059,0.440028,90903.0,90891.0,0.20817428]
[1731846386060,0.110016,90896.0,90891.0,0.20817428]
[1731846386268,0.110016,90896.0,90894.0,0.09815328]
[1731846386496,0.54909655,90902.0,90891.0,0.110021]
[1731846386497,0.220019,90901.0,90893.0,0.19630722]
[1731846386705,0.10906255,90901.0,90896.0,0.09807969]
[1731846386930,0.10906255,90901.0,90894.0,0.14711953]
[1731846386931,0.110015,90897.0,90894.0,0.09807969]
[1731846387137,0.10906255,90901.0,90888.0,0.09807969]
[1731846387138,0.11002,90893.0,90888.0,0.09807969]
[1731846387384,0.110025,90888.0,90882.0,0.04446874]
[1731846387605,0.110027,90886.0,90883.0,0.09812258]
[1731846387810,0.110027,90886.0,90882.0,0.04446874]
[1731846388495,0.110027,90886.0,90876.0,0.09812258]
[1731846388763,0.110027,90886.0,90881.0,0.110033]
[1731846388975,0.110027,90886.0,90876.0,0.09812258]
[1731846389180,0.110027,90886.0,90873.0,0.36726124]
[1731846389181,0.110027,90886.0,90878.0,0.110037]
[1731846389389,0.110027,90886.0,90880.0,0.04427075]
[1731846389849,0.110027,90886.0,90879.0,0.0017128]